bitfinex-derivatives/quotes_SOLF0:USTF0_20250109
["timestamp","ask_amount","ask_price","bid_price","bid_amount"]
[1736432739805,19.8201903,186.93,186.82,1.6219]
[1736432740597,19.8201903,186.93,186.91,2.6763]
[1736432740800,5.70817092,186.95,186.83,1.4939]
[1736432741305,5.70817092,186.95,186.92,2.676]
[1736432741498,5.70817092,186.95,186.83,1.4939]
[1736432741499,19.8201903,186.93,186.83,1.4939]
[1736432741699,19.8201903,186.93,186.82,1.6219]
[1736432741908,19.8201903,186.87,186.77,1.4939]
[1736432742394,19.8201903,186.87,186.84,2.6773]
[1736432742598,19.8201903,186.87,186.77,1.4939]
[1736432742799,19.8201903,186.9,186.77,1.4939]
[1736432742994,19.8201903,186.9,186.78,3.0035]
[1736432743499,19.8201903,186.9,186.88,2.6766]
[1736432743702,19.8201903,186.9,186.78,3.0035]
[1736432744204,19.8201903,186.9,186.88,2.6766]
[1736432745610,19.8201903,186.93,186.78,3.0035]
[1736432745909,25.6201903,186.96,186.8,19.8201903]
[1736432746110,25.6201903,186.96,186.81,5.3554]
[1736432746605,19.8201903,186.96,186.95,2.6757]
[1736432746796,19.8201903,186.99,186.83,19.8201903]
[1736432747002,19.8201903,186.99,186.84,1.5319]
[1736432747305,19.8201903,186.99,186.85,5.3541]
[1736432747607,19.8201903,186.99,186.96,2.6755]
[1736432747807,19.8201903,186.99,186.86,1.5601]
[1736432748204,19.8201903,186.99,186.97,2.6754]
[1736432748408,19.8201903,186.99,186.87,1.5725]
[1736432748806,19.8201903,186.99,186.98,2.6753]
[1736432749008,28.7850938,187.02,186.87,1.5725]
[1736432749609,19.8201903,187.02,186.91,2.6762]
[1736432749804,19.8201903,187.02,186.87,1.5725]
[1736432750604,103.4001903,187.05,186.89,19.8201903]
[1736432750801,19.8201903,187.02,186.88,5.3535]
[1736432751304,19.8201903,187.02,187.0,2.6749]
[1736432751511,19.8201903,187.02,186.89,5.3531]
[1736432751807,19.8201903,187.02,186.87,1.5725]
[1736432751808,103.4001903,187.05,187.03,2.6745]
[1736432752204,103.4001903,187.05,186.87,1.5725]
[1736432752409,103.4001903,187.05,187.02,2.6747]
[1736432753707,103.4001903,187.05,187.03,2.6745]
[1736432754008,19.8201903,187.05,187.03,2.6745]
[1736432754900,430.17842641,187.15,186.91,1.6437]
[1736432755112,20.64570709,187.14,186.98,19.8201903]
[1736432755308,19.8201903,187.14,186.99,4.8182]
[1736432755506,19.8201903,187.02,186.74,40.20870365]
[1736432755706,19.8201903,186.99,186.87,3.1995]
[1736432755904,19.8201903,186.99,186.9,2.6764]
[1736432755905,19.8201903,186.96,186.9,2.6764]
[1736432756101,5.8,186.99,186.87,1.5736]
[1736432756102,19.8201903,186.99,186.87,1.5736]
[1736432756709,19.8201903,186.99,186.9,2.6764]
[1736432756913,19.8201903,186.96,186.87,1.5736]
[1736432757114,19.8201903,186.96,186.85,1.6187]
[1736432758102,19.8201903,186.99,186.85,1.6187]
[1736432758611,19.8201903,186.99,186.95,2.6757]
[1736432759009,19.8201903,186.99,186.85,1.6187]
[1736432759209,19.8201903,186.99,186.97,2.6754]
[1736432759410,12.37343685,186.99,186.85,1.6187]
[1736432759609,12.37343685,186.96,186.85,1.6187]
[1736432760512,12.37343685,186.93,186.85,1.6187]
[1736432760707,12.37343685,186.93,186.9,2.6764]
[1736432760910,12.37343685,186.93,186.85,1.6187]
[1736432761111,12.37343685,186.96,186.86,12.37343685]
[1736432761314,12.37343685,186.96,186.95,2.6757]
[1736432762414,12.37343685,186.99,186.98,2.6752]
[1736432762622,18.17343685,187.02,186.89,12.37343685]
[1736432762824,18.17343685,187.02,186.9,3.1652]
[1736432763813,143.3928088,187.1,186.9,8.9652]
[1736432763814,8.94361006,187.09,186.9,8.9652]
[1736432764015,12.37343685,187.02,186.9,8.9652]
[1736432764519,8.94361006,187.09,186.95,12.37343685]
[1736432764520,12.37343685,187.08,186.95,12.37343685]
[1736432764916,12.37343685,187.08,187.06,2.674]
[1736432765217,12.37343685,187.11,186.98,12.37343685]
[1736432765417,12.37343685,187.11,186.99,3.2334]
[1736432766317,143.3928088,187.16,187.08,2.6737]
[1736432766517,12.37343685,187.14,187.01,12.37343685]
[1736432766918,12.37343685,187.14,187.09,2.6736]
[1736432767420,19.77008617,187.14,187.09,2.6736]
[1736432767622,19.77008617,187.11,186.99,3.2334]
[1736432767818,19.77008617,187.08,186.99,3.2334]
[1736432768018,19.77008617,187.05,186.96,1.6027]
[1736432768218,19.77008617,187.05,187.01,2.6748]
[1736432768524,19.77008617,187.05,186.96,1.6027]
[1736432768724,19.77008617,187.08,186.96,1.6027]
[1736432770223,19.77008617,187.05,186.96,1.6027]
[1736432770423,19.77008617,187.05,186.93,3.2045]
[1736432770619,19.77008617,187.05,186.99,2.675]
[1736432770929,19.77008617,187.02,186.99,2.675]
[1736432771117,19.77008617,187.05,187.01,2.6748]
[1736432771422,19.77008617,187.08,186.93,3.2045]
[1736432771820,19.77008617,187.08,187.03,2.6745]
[1736432772021,19.77008617,187.08,186.93,3.2045]
[1736432772723,19.77008617,187.08,186.94,19.77008617]
[1736432772924,19.77008617,187.11,186.94,19.77008617]
[1736432773625,19.77008617,187.11,187.06,2.674]
[1736432774419,19.77008617,187.11,186.94,19.77008617]
[1736432775227,19.77008617,187.11,186.97,19.77008617]
[1736432775430,19.77008617,187.14,186.98,1.6331]
[1736432775925,19.77008617,187.14,187.0,19.77008617]
[1736432776126,25.55008617,187.17,187.01,1.5045]
[1736432776315,19.77008617,187.17,187.01,1.5045]
[1736432776519,19.77008617,187.17,187.02,1.61]
[1736432776736,19.77008617,187.17,187.03,19.77008617]
[1736432777427,19.77008617,187.17,187.14,2.6729]
[1736432778725,19.77008617,187.2,187.03,19.77008617]
[1736432779524,108.97066536,187.23,187.06,19.77008617]
[1736432779725,108.97066536,187.23,187.18,2.6724]
[1736432779921,108.97066536,187.23,187.07,1.4957]
[1736432780624,108.97066536,187.23,187.19,2.6722]
[1736432780824,19.77008617,187.2,187.07,1.4957]
[1736432782327,19.77008617,187.2,187.19,2.6723]
[1736432782729,108.97066536,187.23,187.19,2.6723]
[1736432782922,19.77008617,187.2,187.07,1.4957]
[1736432783718,19.77008617,187.17,187.02,1.61]
[1736432784025,19.77008617,187.14,187.02,3.1102]
[1736432784625,19.77008617,187.17,187.14,2.6729]
[1736432784924,19.77008617,187.17,187.02,22.88028617]
[1736432785139,19.77008617,187.17,187.16,2.6727]
[1736432785525,19.77008617,187.2,187.02,22.88028617]
[1736432785828,109.05008617,187.23,187.05,19.77008617]
[1736432786326,103.27008617,187.23,187.2,2.6721]
[1736432786629,103.27008617,187.23,187.08,19.77008617]
[1736432786826,103.27008617,187.23,187.18,2.6724]
[1736432787431,19.77008617,187.2,187.09,1.5436]
[1736432787725,5.78,187.31,187.21,2.6719]
[1736432787923,5.78,187.31,187.1,3.177]
[1736432787924,19.77008617,187.26,187.1,3.177]
[1736432788232,19.77008617,187.26,187.11,19.77008617]
[1736432788425,25.55008617,187.29,187.26,2.6713]
[1736432788821,19.77008617,187.29,187.26,2.6713]
[1736432789228,19.77008617,187.29,187.27,2.6712]
[1736432789424,19.77008617,187.29,187.14,19.77008617]
[1736432789627,19.77008617,187.29,187.12,5.3466]
[1736432789825,19.77008617,187.29,187.22,2.6718]
[1736432790030,19.77008617,187.29,187.12,5.3466]
[1736432790724,19.77008617,187.32,187.14,19.77008617]
[1736432790929,19.77008617,187.32,187.15,5.3457]
[1736432791129,19.77008617,187.32,187.28,2.671]
[1736432791330,19.77008617,187.32,187.17,19.77008617]
[1736432791525,19.77008617,187.32,187.18,1.5599]
[1736432792029,19.77008617,187.32,187.19,1.5629]
[1736432792228,19.77008617,187.32,187.28,2.671]
[1736432792627,19.77008617,187.32,187.19,1.5629]
[1736432793328,19.77008617,187.29,187.19,1.5629]
[1736432794334,19.77008617,187.29,187.26,2.6712]
[1736432794530,19.77008617,187.29,187.19,1.5629]
[1736432795729,19.77008617,187.29,187.18,1.5599]
[1736432797435,12.33499914,187.29,187.21,2.672]
[1736432797639,12.33499914,187.23,187.09,5.3474]
[1736432797938,12.33499914,187.23,187.12,1.6167]
[1736432798134,12.33499914,187.26,187.16,12.33499914]
[1736432798437,12.33499914,187.29,187.16,12.33499914]
[1736432800035,12.33499914,187.29,187.25,2.6714]
[1736432800734,12.33499914,187.29,187.25,2.6713]
[1736432801634,12.33499914,187.26,187.13,12.33499914]
[1736432801937,12.33499914,187.23,187.12,1.6167]
[1736432802141,12.33499914,187.23,187.21,2.672]
[1736432803630,12.33499914,187.23,187.12,1.6167]
[1736432803835,12.33499914,187.26,187.16,12.33499914]
[1736432804534,12.33499914,187.26,187.25,2.6714]
[1736432805946,12.33499914,187.29,187.28,2.671]
[1736432806135,12.33499914,187.32,187.19,12.33499914]
[1736432806336,12.33499914,187.32,187.2,1.6049]
[1736432806836,12.33499914,187.32,187.29,2.6708]
[1736432807231,12.33499914,187.32,187.2,1.6049]
[1736432807435,12.33499914,187.26,187.12,5.3466]
[1736432808143,12.33499914,187.26,187.14,5.346]
[1736432808340,18.11499914,187.29,187.12,5.78]
[1736432808540,18.11499914,187.29,187.26,2.6712]
[1736432809442,18.11499914,187.29,187.23,2.6717]
[1736432809737,12.33499914,187.26,187.23,2.6717]
[1736432809946,12.33499914,187.26,187.15,5.3457]
[1736432812151,12.33499914,187.26,187.22,2.6718]
[1736432812347,12.33499914,187.26,187.12,5.78]
[1736432812848,12.33499914,187.26,187.22,2.6719]
[1736432813549,12.33499914,187.23,187.1,5.3472]
[1736432813842,12.33499914,187.19,187.1,5.3472]
[1736432814045,18.11499914,187.29,187.1,17.68219914]
[1736432814046,12.33499914,187.22,187.1,17.68219914]
[1736432814440,12.33499914,187.22,187.11,5.3469]
[1736432815241,12.33499914,187.22,187.21,2.672]
[1736432815647,12.33499914,187.22,187.11,5.3469]
[1736432816150,12.33499914,187.22,187.2,2.6722]
[1736432816352,12.33499914,187.25,187.13,12.33499914]
[1736432816752,12.33499914,187.25,187.23,2.6717]
[1736432816948,12.33499914,187.25,187.13,12.33499914]
[1736432817456,12.33499914,187.22,187.12,5.3467]
[1736432817846,12.33499914,187.22,187.19,2.6722]
[1736432818052,12.33499914,187.22,187.12,5.3467]
[1736432820050,12.33499914,187.22,187.19,2.6723]
[1736432820254,12.33499914,187.22,187.12,5.3467]
[1736432820455,12.33499914,187.25,187.12,5.3467]
[1736432820657,9.00448681,187.27,187.13,12.33499914]
[1736432820852,9.00448681,187.27,187.16,12.33499914]
[1736432821156,9.00448681,187.27,187.26,2.6713]
[1736432821757,21.33948595,187.29,187.26,2.6713]
[1736432822263,21.33948595,187.29,187.17,9.9615]
[1736432822668,12.33499914,187.29,187.17,9.9615]
[1736432823065,12.33499914,187.29,187.26,2.6712]
[1736432823265,19.73715848,187.3,187.26,2.6712]
[1736432823866,19.73715848,187.27,187.17,1.5386]
[1736432824070,19.73715848,187.21,187.12,5.3467]
[1736432824364,19.73715848,187.18,187.16,2.6727]
[1736432824560,19.73715848,187.18,187.06,29.49390365]
[1736432824763,19.73715848,187.18,187.04,10.41017591]
[1736432825469,19.73715848,187.18,187.04,3.0367]
[1736432825666,19.73715848,187.18,187.13,2.673]
[1736432826168,19.73715848,187.18,187.14,2.673]
[1736432826369,19.73715848,187.21,187.05,19.73715848]
[1736432826562,19.73715848,187.18,187.05,1.5154]
[1736432826763,19.73715848,187.18,187.14,2.673]
[1736432827370,19.73715848,187.18,187.05,1.5154]
[1736432828468,19.73715848,187.15,186.95,29.49390365]
[1736432828772,19.73715848,187.09,186.96,4.6549]
[1736432829367,19.73715848,187.12,186.96,24.39205848]
[1736432829671,19.73715848,187.12,187.09,2.6737]
[1736432830071,19.73715848,187.12,186.96,24.39205848]
[1736432830468,19.73715848,187.09,186.96,4.6549]
[1736432830670,19.73715848,187.12,186.96,24.39205848]
[1736432831268,19.73715848,187.12,187.07,2.6739]
[1736432833473,19.73715848,187.12,187.06,2.6741]
[1736432833664,19.73715848,187.12,186.96,24.39205848]
[1736432834964,5.76,187.14,186.96,24.39205848]
[1736432834965,19.73715848,187.15,186.99,19.73715848]
[1736432835170,19.73715848,187.18,186.99,19.73715848]
[1736432835372,19.73715848,187.18,187.02,19.73715848]
[1736432835568,5.76,187.17,187.12,2.6733]
[1736432836072,5.76,187.17,187.14,2.673]
[1736432836268,5.76,187.17,187.02,19.73715848]
[1736432837376,5.76,187.17,187.13,2.6731]
[1736432837772,5.76,187.17,187.02,19.73715848]
[1736432837971,5.76,187.17,187.14,2.673]
[1736432838173,5.76,187.17,186.99,19.73715848]
[1736432838568,5.76,187.17,187.11,2.6734]
[1736432839178,5.76,187.17,186.99,19.73715848]
[1736432839874,5.76,187.17,187.1,2.6735]
[1736432840073,5.76,187.17,187.02,19.73715848]
[1736432840475,5.76,187.17,187.12,2.6732]
[1736432841776,5.76,187.17,187.02,19.73715848]
[1736432842167,5.76,187.17,187.12,2.6733]
[1736432843176,19.73715848,187.18,187.14,2.6729]
[1736432843381,12.34772202,187.19,187.07,12.34772202]
[1736432843576,12.34772202,187.19,187.08,4.6069]
[1736432843881,12.34772202,187.16,187.08,3.106]
[1736432844577,12.34772202,187.13,187.01,12.34772202]
[1736432844774,12.34772202,187.13,187.02,3.106]
[1736432844974,12.34772202,187.13,187.09,2.6737]
[1736432845171,12.34772202,187.13,187.02,3.106]
[1736432846979,12.34772202,187.16,187.04,12.34772202]
[1736432847481,12.34772202,187.13,187.02,3.106]
[1736432848282,12.34772202,187.13,187.1,2.6734]
[1736432848678,12.34772202,187.13,187.02,3.106]
[1736432848981,12.34772202,187.13,187.1,2.6735]
[1736432850376,12.34772202,187.13,187.11,2.6734]
[1736432850987,12.34772202,187.13,187.02,3.106]
[1736432851177,12.34772202,187.1,187.02,3.106]
[1736432851684,12.34772202,187.1,187.07,2.674]
[1736432852182,12.34772202,187.1,187.08,2.6739]
[1736432853284,12.34772202,187.13,187.02,3.106]
[1736432853985,12.34772202,187.13,187.09,2.6737]
[1736432854687,12.34772202,187.13,187.02,3.106]
[1736432855387,12.34772202,187.13,187.11,2.6734]
[1736432855884,12.34772202,187.13,187.02,3.106]
[1736432856080,12.34772202,187.13,187.02,8.4555]
[1736432856282,8.99651754,187.19,187.07,12.34772202]
[1736432856479,12.34772202,187.2,187.16,2.6727]
[1736432856688,12.34772202,187.17,187.08,1.5256]
[1736432859391,12.34772202,187.14,187.02,3.106]
[1736432859578,12.34772202,187.11,187.02,3.106]
[1736432859779,12.34772202,187.11,187.08,2.6738]
[1736432859985,18.10772202,187.14,187.02,3.106]
[1736432860488,18.10772202,187.14,187.1,2.6735]
[1736432860884,18.10772202,187.14,187.02,3.106]
[1736432861083,18.10772202,187.14,187.13,2.6732]
[1736432861280,18.10772202,187.14,187.04,12.34772202]
[1736432861687,18.10772202,187.14,187.02,3.106]
[1736432862184,18.10772202,187.14,187.05,2.6742]
[1736432862185,12.34772202,187.11,187.05,2.6742]
[1736432862691,12.34772202,187.11,187.06,2.6741]
[1736432863094,12.34772202,187.11,187.02,1.6146]
[1736432863393,12.34772202,187.11,187.09,2.6736]
[1736432864091,5.76,187.14,187.02,1.6146]
[1736432864292,12.34772202,187.13,187.02,1.6146]
[1736432864592,12.34772202,187.1,187.02,1.6146]
[1736432864789,12.34772202,187.1,187.07,2.6739]
[1736432866086,12.34772202,187.1,187.08,2.6739]
[1736432868382,12.34772202,187.1,187.06,2.6741]
[1736432868989,12.34772202,187.1,187.07,2.6739]
[1736432869992,12.34772202,187.1,187.09,2.6737]
[1736432872695,12.34772202,187.1,186.97,1.5664]
[1736432872895,12.34772202,187.06,186.97,1.5664]
[1736432873195,12.34772202,187.03,186.97,1.5664]
[1736432873397,12.34772202,187.03,186.95,1.5537]
[1736432875297,12.34772202,187.03,187.0,2.6749]
[1736432875892,12.34772202,187.03,186.95,1.5537]
[1736432876088,12.34772202,187.06,186.95,13.90142202]
[1736432876594,12.34772202,187.06,187.04,2.6743]
[1736432876893,12.34772202,187.06,186.95,1.5537]
[1736432877085,12.34772202,187.03,186.95,1.5537]
[1736432877287,12.34772202,187.03,186.98,2.6751]
[1736432877700,12.34772202,187.03,186.95,1.5537]
[1736432878300,12.34772202,187.03,187.0,2.6749]
[1736432878495,12.34772202,187.06,186.95,1.5537]
[1736432878798,12.34772202,187.06,186.98,2.6752]
[1736432879097,12.34772202,187.06,186.95,1.5537]
[1736432880099,12.34772202,187.06,187.0,2.6748]
[1736432880298,12.34772202,187.06,186.95,1.5537]
[1736432880899,18.10772202,187.09,186.95,13.90142202]
[1736432881095,12.34772202,187.09,186.98,12.34772202]
[1736432881294,5.76,187.1,186.99,2.9997]
[1736432881998,5.76,187.1,187.07,2.6739]
[1736432882498,5.76,187.1,186.99,2.9997]
[1736432882799,12.34772202,187.09,186.99,2.9997]
[1736432882997,143.3928088,187.17,187.02,12.34772202]
[1736432882998,5.76,187.16,187.02,12.34772202]
[1736432883202,13.17069295,187.15,187.03,1.5513]
[1736432883403,12.34772202,187.15,187.03,1.5513]
[1736432884308,9.01380742,187.16,187.03,1.5513]
[1736432884599,21.36152944,187.17,187.05,12.34772202]
[1736432884804,9.01380742,187.17,187.05,12.34772202]
[1736432885005,9.01380742,187.17,187.08,12.34772202]
[1736432885205,200.16976984,187.24,187.15,12.34772202]
[1736432885498,11.34244829,187.24,187.23,15.01942202]
[1736432885700,0.01704829,187.24,187.23,15.01942202]
[1736432885909,3.0801,187.36,187.23,12.34772202]
[1736432885910,12.34772202,187.35,187.23,12.34772202]
[1736432886094,12.34772202,187.35,187.2,12.34772202]
[1736432886905,12.34772202,187.35,187.33,512.6854162]
[1736432887097,3.0801,187.36,187.33,512.6854162]
[1736432887505,3.0801,187.36,187.32,29.54995558]
[1736432887903,3.0801,187.36,187.33,66.94490463]
[1736432888107,1.5697,187.36,187.33,66.94490463]
[1736432888409,1.5697,187.36,187.34,5.88140069]
[1736432889298,1.5697,187.36,185.24,52.77947619]
[1736432889299,1.5697,187.36,187.27,7.38748889]
[1736432889805,1.5697,187.36,187.29,2.6708]
[1736432889998,1.5697,187.36,187.28,12.7577219]
[1736432890405,1.5697,187.36,187.28,6.94387391]
[1736432890603,2.6701,187.34,187.27,7.38748889]
[1736432890906,19.7192352,187.33,187.24,7.38748889]
[1736432891109,19.7192352,187.3,187.24,7.38748889]
[1736432891308,1.5109,187.29,187.24,4.92088889]
[1736432891706,1.5109,187.29,187.23,2.6717]
[1736432891899,1.5109,187.29,187.17,223.702559]
[1736432892100,19.7192352,187.27,187.17,223.702559]
[1736432892307,19.7192352,187.27,187.17,226.374959]
[1736432892610,19.7192352,187.27,187.17,2.6724]
[1736432892805,2.672,187.21,187.13,2.673]
[1736432893011,2.672,187.21,187.08,19.7192352]
[1736432893204,1.5395,187.23,187.08,19.7192352]
[1736432893407,19.7192352,187.21,187.05,25.4592352]
[1736432893609,1.6085,187.2,187.09,5.59820379]
[1736432893911,1.6085,187.2,187.1,5.59820379]
[1736432894108,1.5395,187.23,187.1,5.59820379]
[1736432894313,1.5395,187.23,187.11,5.59820379]
[1736432894710,2.6723,187.19,187.12,8.27130379]
[1736432895010,1.5395,187.23,187.12,5.59820379]
[1736432895509,1.5395,187.23,187.13,5.59820379]
[1736432895709,1.5395,187.23,187.08,19.7192352]
[1736432896011,2.6721,187.21,187.15,2.6728]
[1736432896508,1.5395,187.23,187.08,19.7192352]
[1736432897110,4.2112,187.23,187.18,2.6724]
[1736432897607,4.2112,187.23,187.16,2.6726]
[1736432897809,1.5395,187.23,187.11,19.7192352]
[1736432898507,2.6719,187.22,187.11,19.7192352]
[1736432898710,1.5395,187.23,187.08,19.7192352]
[1736432898912,4.2113,187.23,187.08,19.7192352]
[1736432899116,4.2113,187.23,187.12,5.59461109]
[1736432899317,1.5395,187.23,187.12,5.59461109]
[1736432899712,1.5395,187.23,187.13,5.59461109]
[1736432900014,1.5395,187.23,187.16,2.6726]
[1736432900225,2.6721,187.2,187.13,5.59461109]
[1736432900414,21.3080352,187.22,187.05,19.7192352]
[1736432900816,2.6724,187.18,187.05,19.7192352]
[1736432901019,2.6724,187.18,187.11,2.6732]
[1736432901424,2.6728,187.15,187.07,5.59472014]
[1736432901718,19.7192352,187.16,187.09,2.6736]
[1736432901911,2.6728,187.15,187.09,2.6736]
[1736432902514,19.7192352,187.16,187.05,5.59576788]
[1736432902715,2.6731,187.13,187.08,2.6738]
[1736432903116,1.6172,187.15,187.05,2.6741]
[1736432903315,1.6172,187.15,187.02,19.7192352]
[1736432903621,1.6172,187.15,186.99,19.7192352]
[1736432903823,1.6172,187.15,187.0,5.59588107]
[1736432904017,2.6732,187.13,187.0,5.59588107]
[1736432904321,1.6172,187.15,187.01,5.59588107]
[1736432904523,4.2901,187.15,187.1,2.6735]
[1736432904717,1.6172,187.15,187.03,5.59588107]
[1736432905419,1.6172,187.15,187.04,5.59588107]
[1736432905917,1.6172,187.15,187.05,5.59588107]
[1736432906713,4.2901,187.15,187.09,2.6735]
[1736432907024,4.2901,187.15,187.02,19.7192352]
[1736432907229,1.6172,187.15,187.03,5.59548738]
[1736432907415,5.74,187.21,187.05,19.7192352]
[1736432907615,7.3168,187.21,187.06,5.59548738]
[1736432907822,2.6725,187.18,187.12,2.6731]
[1736432908022,2.6725,187.18,187.06,5.59548738]
[1736432908222,1.5768,187.21,187.08,19.7192352]
[1736432908525,2.6722,187.2,187.15,2.6728]
[1736432909326,1.5768,187.21,187.09,5.59548738]
[1736432909628,1.5768,187.21,187.1,5.59548738]
[1736432909827,1.5768,187.21,187.08,19.7192352]
[1736432910528,1.5768,187.21,187.09,5.59436874]
[1736432910726,2.6721,187.2,187.09,5.59436874]
[1736432911229,2.6721,187.2,187.1,5.59436874]
[1736432911426,1.5768,187.21,187.1,5.59436874]
[1736432911630,1.5888,187.22,187.11,19.7192352]
[1736432912026,1.5395,187.23,187.12,5.59436874]
[1736432912226,3.0529,187.28,187.14,19.7192352]
[1736432912530,3.0529,187.28,187.25,2.6713]
[1736432912736,1.6422,187.36,187.17,19.7192352]
[1736432912737,19.7192352,187.35,187.17,19.7192352]
[1736432912923,28.4555352,187.35,187.2,19.7192352]
[1736432913127,2.6704,187.33,187.28,2.6708]
[1736432913327,28.4555352,187.35,187.21,5.59436874]
[1736432913526,2.6706,187.31,187.26,2.6711]
[1736432914027,2.6704,187.32,187.27,2.671]
[1736432914235,22.7155352,187.35,187.2,19.7192352]
[1736432914437,2.9963,187.35,187.23,19.7192352]
[1736432914733,2.9963,187.35,187.24,5.58761333]
[1736432914924,1.6422,187.36,187.24,5.58761333]
[1736432915124,1.6422,187.36,187.25,5.58761333]
[1736432915632,1.6422,187.36,187.26,5.58761333]
[1736432916028,23.0,187.34,187.26,5.58761333]
[1736432916327,23.0,187.35,187.24,5.74]
[1736432917033,23.0,187.35,187.25,5.58045039]
[1736432917229,23.0,187.35,187.31,2.6705]
[1736432917424,23.0,187.35,187.25,5.58045039]
[1736432917835,23.0,187.35,187.28,2.6708]
[1736432918130,23.0,187.35,187.25,5.58045039]
[1736432918329,23.0,187.35,187.27,2.671]
[1736432918529,19.7192352,187.33,187.23,5.58045039]
[1736432918834,19.7192352,187.33,187.19,49.49799974]
[1736432919228,19.7192352,187.33,187.2,5.579663]
[1736432919534,1.5766,187.34,187.21,5.579663]
[1736432919729,4.2468,187.34,187.21,5.579663]
[1736432920235,4.2468,187.34,187.29,2.6707]
[1736432920436,2.6703,187.33,187.29,2.6707]
[1736432920833,1.5766,187.34,187.27,2.671]
[1736432921033,2.6705,187.32,187.27,2.671]
[1736432921332,1.4888,187.31,187.23,5.579663]
[1736432921534,22.8446352,187.31,187.24,2.6715]
[1736432921729,22.8446352,187.31,187.2,22.16246669]
[1736432921933,19.7192352,187.28,187.2,24.83456669]
[1736432922132,19.7192352,187.28,187.2,22.16246669]
[1736432922333,2.6711,187.27,187.2,22.16246669]
[1736432922530,19.7192352,187.28,187.2,2.672]
[1736432922731,19.7192352,187.28,187.18,22.16246669]
[1736432922932,2.6713,187.26,187.18,22.16246669]
[1736432923338,19.7192352,187.28,187.17,22.16246669]
[1736432923633,2.6715,187.24,187.17,22.16246669]
[1736432923838,19.7192352,187.28,187.2,2.6721]
[1736432924436,2.6715,187.25,187.2,2.6721]
[1736432924630,19.7192352,187.28,187.2,2.6721]
[1736432924934,2.6714,187.25,187.15,22.16246669]
[1736432925435,19.7192352,187.28,187.16,5.59806825]
[1736432925834,2.6716,187.24,187.16,5.59806825]
[1736432926128,19.7192352,187.25,187.17,5.73639704]
[1736432926333,2.6717,187.23,187.17,5.73639704]
[1736432926732,1.5101,187.24,187.15,22.16246669]
[1736432926934,1.5101,187.24,187.2,2.672]
[1736432927328,1.5101,187.24,187.16,5.60087614]
[1736432927526,2.6712,187.27,187.23,2.6717]
[1736432927732,5.72,187.29,187.23,2.6717]
[1736432927934,5.72,187.29,187.17,19.7192352]
[1736432928331,1.5101,187.3,187.18,5.60287731]
[1736432928538,2.671,187.28,187.2,22.16246669]
[1736432928937,2.671,187.28,187.24,2.6714]
[1736432929342,2.6708,187.29,187.25,2.6714]
[1736432929943,1.5101,187.3,187.27,2.6711]
[1736432930338,1.5101,187.3,187.21,22.16246669]
[1736432930741,4.1809,187.3,187.25,2.6713]
[1736432931337,1.4888,187.31,187.22,11.33499613]
[1736432931548,2.671,187.28,187.24,2.6715]
[1736432932144,2.6708,187.29,187.21,22.16246669]
[1736432932343,2.6708,187.29,187.25,2.6714]
[1736432932949,21.2080352,187.31,187.21,22.16246669]
[1736432933247,1.4888,187.31,187.21,22.16246669]
[1736432933445,2.6707,187.3,187.21,22.16246669]
[1736432933642,2.6707,187.3,187.22,5.6022712]
[1736432934142,21.2080352,187.31,187.23,11.33499524]
[1736432934647,21.2080352,187.31,187.23,5.73272404]
[1736432934842,21.2080352,187.31,187.21,22.16246669]
[1736432935748,2.6711,187.28,187.24,2.6715]
[1736432935950,21.2080352,187.31,187.21,22.16246669]
[1736432936149,21.2080352,187.31,187.19,22.16246669]
[1736432936445,2.6711,187.27,187.23,2.6716]
[1736432937347,2.671,187.28,187.24,2.6715]
[1736432938352,2.6714,187.25,187.21,2.6718]
[1736432938548,5.72,187.27,187.18,22.16246669]
[1736432938748,5.72,187.27,187.17,45.10929319]
[1736432939050,7.2257,187.27,187.17,45.10929319]
[1736432939454,12.3400202,187.25,187.17,45.10929319]
[1736432940050,12.3400202,187.25,187.13,34.50248689]
[1736432940651,2.6716,187.24,187.2,2.672]
[1736432941454,2.6717,187.23,187.19,2.6722]
[1736432943355,12.3400202,187.25,187.19,2.6722]
[1736432943551,12.3400202,187.25,187.13,12.3400202]
[1736432943754,12.3400202,187.25,187.2,2.6721]
[1736432944659,2.6717,187.23,187.19,2.6722]